[Event "Early-Titled-Tuesday-Blitz-January-16-2024"]
[Site "Chess.com"]
[Date "2024.01.16"]
[Round "3"]
[White "Garbaranza"]
[Black "Kolle05"]
[Result "1-0"]
[WhiteElo "2428"]
[BlackElo "2595"]
[TimeControl "180+1"]
[EndTime "8:29:51 PST"]
[Termination "Garbaranza won by resignation"]

1. e4 {[%clk 0:02:59.8]} 1... c5 {[%clk 0:02:58.2]} 2. Nc3 {[%clk 0:02:59.8]}
2... Nc6 {[%clk 0:02:58.1]} 3. Nf3 {[%clk 0:02:59.1]} 3... d6 {[%clk 0:02:55.4]}
4. d4 {[%clk 0:02:56.4]} 4... cxd4 {[%clk 0:02:54.8]} 5. Nxd4 {[%clk 0:02:56.4]}
5... Nf6 {[%clk 0:02:55.4]} 6. f4 {[%clk 0:02:55.4]} 6... g6 {[%clk 0:02:44.7]}
7. Nb3 {[%clk 0:02:50.3]} 7... Bg7 {[%clk 0:02:44.3]} 8. Be3 {[%clk 0:02:50.3]}
8... O-O {[%clk 0:02:41.7]} 9. Be2 {[%clk 0:02:50.1]} 9... a6 {[%clk 0:02:41.4]}
10. g4 {[%clk 0:02:48.8]} 10... b5 {[%clk 0:02:40.1]} 11. g5 {[%clk 0:02:47.3]}
11... Nd7 {[%clk 0:02:39.4]} 12. Bf3 {[%clk 0:02:36.5]} 12... Bb7 {[%clk
0:02:38.1]} 13. h4 {[%clk 0:02:32.5]} 13... Nb6 {[%clk 0:02:26.2]} 14. Bxb6
{[%clk 0:01:23.7]} 14... Qxb6 {[%clk 0:02:25.7]} 15. Nd5 {[%clk 0:01:23.7]}
15... Qd8 {[%clk 0:02:24]} 16. c3 {[%clk 0:01:22.3]} 16... Na5 {[%clk 0:01:35]}
17. Nxa5 {[%clk 0:01:18.9]} 17... Qxa5 {[%clk 0:01:35.9]} 18. Nxe7+ {[%clk
0:01:15.3]} 18... Kh8 {[%clk 0:01:36.2]} 19. Nd5 {[%clk 0:00:57.9]} 19... Rfe8
{[%clk 0:01:30.6]} 20. h5 {[%clk 0:00:50.8]} 20... b4 {[%clk 0:01:27.1]} 21.
hxg6 {[%clk 0:00:26.6]} 21... Bxd5 {[%clk 0:01:09]} 22. Rxh7+ {[%clk 0:00:26.1]}
22... Kg8 {[%clk 0:01:09.6]} 23. Rxg7+ {[%clk 0:00:26.4]} 23... Kxg7 {[%clk
0:01:06.2]} 24. Qd4+ {[%clk 0:00:26.8]} 24... Kf8 {[%clk 0:00:54.8]} 25. Qh8+
{[%clk 0:00:19.2]} 25... Ke7 {[%clk 0:00:54.9]} 26. Qf6+ {[%clk 0:00:19.6]}
26... Kd7 {[%clk 0:00:55.6]} 27. O-O-O {[%clk 0:00:17.6]} 27... bxc3 {[%clk
0:00:50.3]} 28. Rxd5 {[%clk 0:00:15.5]} 28... cxb2+ {[%clk 0:00:50.3]} 29. Kb1
{[%clk 0:00:14]} 29... Qa3 {[%clk 0:00:25.4]} 30. Qxf7+ {[%clk 0:00:10]} 30...
Re7 {[%clk 0:00:19.5]} 31. Bg4+ {[%clk 0:00:09.4]} 31... Kd8 {[%clk 0:00:13.3]}
32. Qf8+ {[%clk 0:00:08.8]} 32... Re8 {[%clk 0:00:09.1]} 33. Qxd6+ {[%clk
0:00:08.6]} 33... Qxd6 {[%clk 0:00:08.2]} 34. Rxd6+ {[%clk 0:00:09.2]} 34... Kc7
{[%clk 0:00:09.1]} 35. Rd7+ {[%clk 0:00:09.3]} 35... Kc6 {[%clk 0:00:10]} 36. g7
{[%clk 0:00:09.2]} 36... Rxe4 {[%clk 0:00:09.9]} 37. Rd1 {[%clk 0:00:07.9]}
37... Rxf4 {[%clk 0:00:09.1]} 38. Be6 {[%clk 0:00:08]} 38... Rf2 {[%clk
0:00:04]} 39. g8=Q {[%clk 0:00:07.7]} 39... Rxg8 {[%clk 0:00:04.5]} 40. Bxg8
{[%clk 0:00:07.9]} 40... Kc5 {[%clk 0:00:04.7]} 41. Bb3 {[%clk 0:00:07.9]} 41...
Rg2 {[%clk 0:00:05.1]} 42. Bc2 {[%clk 0:00:08.1]} 42... Rxg5 {[%clk 0:00:05]}
43. Kxb2 {[%clk 0:00:08.7]} 43... Re5 {[%clk 0:00:05.5]} 44. Rf1 {[%clk
0:00:09.1]} 44... Kb6 {[%clk 0:00:05.9]} 45. Rf5 {[%clk 0:00:09.6]} 45... Re6
{[%clk 0:00:04.2]} 46. Rg5 {[%clk 0:00:09.2]} 46... Rd6 {[%clk 0:00:04.7]} 47.
Rg6 {[%clk 0:00:09.2]} 47... Kc5 {[%clk 0:00:03.6]} 48. Rxd6 {[%clk 0:00:06.9]}
48... Kxd6 {[%clk 0:00:04.5]} 49. Bd3 {[%clk 0:00:06.9]} 49... a5 {[%clk
0:00:04.4]} 50. Kb3 {[%clk 0:00:07.4]} 50... Kc5 {[%clk 0:00:05.3]} 51. Ka4
{[%clk 0:00:07.8]} 51... Kb6 {[%clk 0:00:06.2]} 52. Bb5 {[%clk 0:00:07.8]} 1-0

[Event "Early-Titled-Tuesday-Blitz-January-16-2024"]
[Site "Chess.com"]
[Date "2024.01.16"]
[Round "3"]
[White "vasblesk"]
[Black "AlbusSevresPotter"]
[Result "0-1"]
[WhiteElo "2776"]
[BlackElo "2555"]
[TimeControl "180+1"]
[EndTime "8:29:53 PST"]
[Termination "AlbusSevresPotter won on time"]

1. Nf3 {[%clk 0:03:00.9]} 1... Nf6 {[%clk 0:02:59.2]} 2. g3 {[%clk 0:02:58]}
2... b6 {[%clk 0:02:59.5]} 3. Bg2 {[%clk 0:02:58.3]} 3... Bb7 {[%clk 0:03:00.4]}
4. O-O {[%clk 0:02:58.8]} 4... e6 {[%clk 0:02:59.8]} 5. c4 {[%clk 0:02:58.9]}
5... c5 {[%clk 0:02:58.7]} 6. d3 {[%clk 0:02:54.5]} 6... Be7 {[%clk 0:02:58.1]}
7. e4 {[%clk 0:02:54.2]} 7... d5 {[%clk 0:02:58]} 8. exd5 {[%clk 0:02:49.9]}
8... exd5 {[%clk 0:02:57.9]} 9. Nc3 {[%clk 0:02:49.2]} 9... d4 {[%clk
0:02:57.3]} 10. Ne2 {[%clk 0:02:48.7]} 10... O-O {[%clk 0:02:56.8]} 11. Bg5
{[%clk 0:02:47.5]} 11... Nbd7 {[%clk 0:02:49.3]} 12. Nf4 {[%clk 0:02:44.8]}
12... Bd6 {[%clk 0:02:46]} 13. Nh5 {[%clk 0:02:40.1]} 13... h6 {[%clk
0:02:43.8]} 14. Nxf6+ {[%clk 0:02:39.9]} 14... Nxf6 {[%clk 0:02:43.5]} 15. Bxf6
{[%clk 0:02:39.5]} 15... Qxf6 {[%clk 0:02:44.4]} 16. Nd2 {[%clk 0:02:38.8]}
16... Bxg2 {[%clk 0:02:38.6]} 17. Kxg2 {[%clk 0:02:39.7]} 17... Qg6 {[%clk
0:02:37.5]} 18. Qf3 {[%clk 0:02:37]} 18... Rfe8 {[%clk 0:02:35.5]} 19. Rae1
{[%clk 0:02:35.8]} 19... Kh7 {[%clk 0:02:27.2]} 20. h3 {[%clk 0:02:30.8]} 20...
h5 {[%clk 0:02:25.2]} 21. g4 {[%clk 0:02:25.6]} 21... Bc7 {[%clk 0:02:00.5]} 22.
Qf5 {[%clk 0:02:05.7]} 22... Qxf5 {[%clk 0:01:50.2]} 23. gxf5 {[%clk 0:02:06.6]}
23... g6 {[%clk 0:01:20.6]} 24. Ne4 {[%clk 0:02:04.3]} 24... Kg7 {[%clk
0:01:04.5]} 25. f6+ {[%clk 0:01:55.1]} 25... Kh6 {[%clk 0:00:52.4]} 26. f4
{[%clk 0:01:52.8]} 26... Re6 {[%clk 0:00:45]} 27. f5 {[%clk 0:01:03.4]} 27...
gxf5 {[%clk 0:00:41.2]} 28. Rxf5 {[%clk 0:01:04.3]} 28... Rg8+ {[%clk
0:00:37.4]} 29. Kf3 {[%clk 0:01:01.6]} 29... Rg3+ {[%clk 0:00:27.1]} 30. Nxg3
{[%clk 0:00:57.3]} 30... Rxe1 {[%clk 0:00:28]} 31. Ne2 {[%clk 0:00:45.8]} 31...
Rf1+ {[%clk 0:00:25.8]} 32. Ke4 {[%clk 0:00:44.7]} 32... Re1 {[%clk 0:00:23.9]}
33. Kf3 {[%clk 0:00:42.3]} 33... Kg6 {[%clk 0:00:22]} 34. Rd5 {[%clk 0:00:41.1]}
34... Rf1+ {[%clk 0:00:20.5]} 35. Kg2 {[%clk 0:00:39.4]} 35... Rb1 {[%clk
0:00:21]} 36. b3 {[%clk 0:00:36.3]} 36... Rb2 {[%clk 0:00:21]} 37. Kf3 {[%clk
0:00:36.6]} 37... Rxa2 {[%clk 0:00:21.5]} 38. Rd7 {[%clk 0:00:35.8]} 38... Be5
{[%clk 0:00:21.7]} 39. Re7 {[%clk 0:00:36]} 39... Kxf6 {[%clk 0:00:22]} 40. Re8
{[%clk 0:00:36.4]} 40... a5 {[%clk 0:00:22.2]} 41. Rc8 {[%clk 0:00:35.1]} 41...
Rb2 {[%clk 0:00:22.1]} 42. Rc6+ {[%clk 0:00:35.3]} 42... Kf5 {[%clk 0:00:22.3]}
43. Nc1 {[%clk 0:00:21.6]} 43... Rh2 {[%clk 0:00:20.4]} 44. Rxb6 {[%clk
0:00:20.5]} 44... Rxh3+ {[%clk 0:00:20.7]} 45. Kg2 {[%clk 0:00:19.5]} 45... Rh2+
{[%clk 0:00:20.6]} 46. Kf3 {[%clk 0:00:18.8]} 46... h4 {[%clk 0:00:19.7]} 47.
Rb5 {[%clk 0:00:14]} 47... Rc2 {[%clk 0:00:18.8]} 48. Ne2 {[%clk 0:00:13.8]}
48... h3 {[%clk 0:00:15.9]} 49. Rxc5 {[%clk 0:00:13.7]} 49... h2 {[%clk
0:00:16.4]} 50. Ng3+ {[%clk 0:00:07.3]} 50... Ke6 {[%clk 0:00:16.5]} 51. Nh1
{[%clk 0:00:07.4]} 51... Rc1 {[%clk 0:00:16.2]} 52. Nf2 {[%clk 0:00:03.4]} 52...
Rf1 {[%clk 0:00:15.7]} 0-1

[Event "Early-Titled-Tuesday-Blitz-January-16-2024"]
[Site "Chess.com"]
[Date "2024.01.16"]
[Round "3"]
[White "profedechess93"]
[Black "VladimirKramnik"]
[Result "1-0"]
[WhiteElo "2628"]
[BlackElo "2928"]
[TimeControl "180+1"]
[EndTime "8:29:54 PST"]
[Termination "profedechess93 won on time"]

1. e4 {[%clk 0:02:56.9]} 1... c5 {[%clk 0:02:58.9]} 2. Nf3 {[%clk 0:02:56.8]}
2... d6 {[%clk 0:02:59.1]} 3. Bb5+ {[%clk 0:02:56.8]} 3... Nd7 {[%clk
0:02:58.2]} 4. d4 {[%clk 0:02:56.6]} 4... cxd4 {[%clk 0:02:57.7]} 5. Qxd4 {[%clk
0:02:57.5]} 5... a6 {[%clk 0:02:57.5]} 6. Bxd7+ {[%clk 0:02:58]} 6... Bxd7
{[%clk 0:02:57.7]} 7. Bg5 {[%clk 0:02:58.9]} 7... f6 {[%clk 0:02:44.8]} 8. Be3
{[%clk 0:02:57.9]} 8... e5 {[%clk 0:02:30.7]} 9. Qd2 {[%clk 0:02:57.1]} 9... Be6
{[%clk 0:02:13.8]} 10. Nc3 {[%clk 0:02:56.6]} 10... Rc8 {[%clk 0:02:06.4]} 11.
O-O {[%clk 0:02:49.7]} 11... Ne7 {[%clk 0:01:54.2]} 12. Nh4 {[%clk 0:02:46.8]}
12... d5 {[%clk 0:01:43.5]} 13. exd5 {[%clk 0:02:09.2]} 13... Nxd5 {[%clk
0:01:43.4]} 14. Nxd5 {[%clk 0:01:44]} 14... Qxd5 {[%clk 0:01:42.7]} 15. Qe2
{[%clk 0:01:44.4]} 15... Qc4 {[%clk 0:01:41.4]} 16. Qh5+ {[%clk 0:01:22]} 16...
Bf7 {[%clk 0:01:27.9]} 17. Qf5 {[%clk 0:01:17]} 17... Be7 {[%clk 0:01:27.8]} 18.
Qh3 {[%clk 0:00:59.9]} 18... g6 {[%clk 0:01:15.9]} 19. f4 {[%clk 0:00:53.8]}
19... O-O {[%clk 0:00:55.5]} 20. fxe5 {[%clk 0:00:51]} 20... fxe5 {[%clk
0:00:55.4]} 21. Nf3 {[%clk 0:00:51.6]} 21... Bd5 {[%clk 0:00:44.1]} 22. Ng5
{[%clk 0:00:42.8]} 22... Bxg5 {[%clk 0:00:35.8]} 23. Bxg5 {[%clk 0:00:43]} 23...
Qxc2 {[%clk 0:00:26.7]} 24. Be7 {[%clk 0:00:42.5]} 24... Rxf1+ {[%clk
0:00:11.6]} 25. Rxf1 {[%clk 0:00:43.4]} 25... Re8 {[%clk 0:00:07.7]} 26. Ba3
{[%clk 0:00:26.2]} 26... Qe2 {[%clk 0:00:07.2]} 27. Qg3 {[%clk 0:00:20.5]} 27...
Qe4 {[%clk 0:00:07.3]} 28. h4 {[%clk 0:00:17.5]} 28... h5 {[%clk 0:00:04.8]} 29.
Rf6 {[%clk 0:00:15.6]} 29... Bf7 {[%clk 0:00:04.9]} 30. Qf2 {[%clk 0:00:15.2]}
30... Qd4 {[%clk 0:00:04.6]} 31. Rxf7 {[%clk 0:00:14.1]} 31... Qxf2+ {[%clk
0:00:03.8]} 32. Rxf2 {[%clk 0:00:15]} 32... Rd8 {[%clk 0:00:03.1]} 33. Re2
{[%clk 0:00:14.5]} 33... Rd5 {[%clk 0:00:03.2]} 34. Kf2 {[%clk 0:00:14.9]} 34...
Kf7 {[%clk 0:00:03.3]} 35. Ke3 {[%clk 0:00:15.5]} 35... Ke6 {[%clk 0:00:03.7]}
36. Rf2 {[%clk 0:00:15.4]} 36... Rd4 {[%clk 0:00:03.2]} 37. g3 {[%clk
0:00:15.7]} 37... Rg4 {[%clk 0:00:02.8]} 38. Kf3 {[%clk 0:00:16.1]} 38... Rd4
{[%clk 0:00:02.5]} 39. b3 {[%clk 0:00:14.4]} 39... Rd3+ {[%clk 0:00:01.8]} 40.
Kg2 {[%clk 0:00:13.7]} 40... e4 {[%clk 0:00:02]} 41. Bb2 {[%clk 0:00:13]} 41...
Kd5 {[%clk 0:00:02.1]} 42. Bf6 {[%clk 0:00:12.1]} 42... e3 {[%clk 0:00:01.6]}
43. Re2 {[%clk 0:00:12.2]} 43... Ke4 {[%clk 0:00:01.9]} 44. Bg5 {[%clk
0:00:11.4]} 44... b5 {[%clk 0:00:01.5]} 45. Kf1 {[%clk 0:00:11.7]} 45... a5
{[%clk 0:00:01.6]} 46. Kg2 {[%clk 0:00:11.7]} 46... a4 {[%clk 0:00:01.2]} 47.
bxa4 {[%clk 0:00:12]} 47... bxa4 {[%clk 0:00:01.9]} 48. Rb2 {[%clk 0:00:10.1]}
48... Rc3 {[%clk 0:00:01.3]} 49. Rb4+ {[%clk 0:00:09.3]} 49... Kd3 {[%clk
0:00:01.6]} 50. Rb8 {[%clk 0:00:08.2]} 50... e2 {[%clk 0:00:01.4]} 51. Rd8+
{[%clk 0:00:07.2]} 51... Kc2 {[%clk 0:00:01.4]} 52. Rd2+ {[%clk 0:00:07.2]}
52... Kb1 {[%clk 0:00:01.3]} 53. Rxe2 {[%clk 0:00:07.9]} 1-0

[Event "Early-Titled-Tuesday-Blitz-January-16-2024"]
[Site "Chess.com"]
[Date "2024.01.16"]
[Round "3"]
[White "HalfIsCrayfish"]
[Black "lucliasco"]
[Result "1-0"]
[WhiteElo "2632"]
[BlackElo "2913"]
[TimeControl "180+1"]
[EndTime "8:29:57 PST"]
[Termination "HalfIsCrayfish won on time"]

1. e4 {[%clk 0:03:00.9]} 1... e5 {[%clk 0:02:54.1]} 2. Nc3 {[%clk 0:03:00.1]}
2... Nc6 {[%clk 0:02:54]} 3. g3 {[%clk 0:02:35.4]} 3... h5 {[%clk 0:02:52.3]} 4.
h3 {[%clk 0:02:35.3]} 4... d6 {[%clk 0:02:51.8]} 5. d3 {[%clk 0:02:32.7]} 5...
g6 {[%clk 0:02:51.1]} 6. Bg2 {[%clk 0:02:30]} 6... Bg7 {[%clk 0:02:51.2]} 7.
Nge2 {[%clk 0:02:30.4]} 7... Nge7 {[%clk 0:02:51.2]} 8. O-O {[%clk 0:02:29.8]}
8... Be6 {[%clk 0:02:37.4]} 9. f4 {[%clk 0:02:26.8]} 9... Qd7 {[%clk 0:02:29.4]}
10. Kh2 {[%clk 0:02:13.4]} 10... O-O-O {[%clk 0:02:15.6]} 11. Be3 {[%clk
0:02:06.9]} 11... Nd4 {[%clk 0:02:06.6]} 12. Qd2 {[%clk 0:01:57.2]} 12... f5
{[%clk 0:01:58.6]} 13. Nd5 {[%clk 0:01:37.1]} 13... Bxd5 {[%clk 0:01:30.9]} 14.
exd5 {[%clk 0:01:35.9]} 14... h4 {[%clk 0:01:31.5]} 15. Bxd4 {[%clk 0:01:10]}
15... hxg3+ {[%clk 0:01:28]} 16. Nxg3 {[%clk 0:01:10.2]} 16... exd4 {[%clk
0:01:28.9]} 17. Rae1 {[%clk 0:01:10.5]} 17... Ng8 {[%clk 0:01:07.5]} 18. Re6
{[%clk 0:01:02.7]} 18... Nf6 {[%clk 0:01:07.2]} 19. Kg1 {[%clk 0:01:02.5]} 19...
Rhe8 {[%clk 0:00:52.7]} 20. Rfe1 {[%clk 0:01:01.2]} 20... Qb5 {[%clk 0:00:43.3]}
21. c4 {[%clk 0:00:44.4]} 21... dxc3 {[%clk 0:00:39.5]} 22. bxc3 {[%clk
0:00:45.3]} 22... a6 {[%clk 0:00:24.4]} 23. c4 {[%clk 0:00:41.2]} 23... Qa4
{[%clk 0:00:24.5]} 24. Qe2 {[%clk 0:00:29]} 24... Rxe6 {[%clk 0:00:20.4]} 25.
dxe6 {[%clk 0:00:26.4]} 25... Ng8 {[%clk 0:00:18.2]} 26. e7 {[%clk 0:00:25.2]}
26... Re8 {[%clk 0:00:18.4]} 27. Qe6+ {[%clk 0:00:25.3]} 27... Qd7 {[%clk
0:00:14.9]} 28. Qf7 {[%clk 0:00:25.4]} 28... Bf6 {[%clk 0:00:09.4]} 29. Qxg6
{[%clk 0:00:21]} 29... Bh4 {[%clk 0:00:07.4]} 30. Re3 {[%clk 0:00:15.5]} 30...
Bxg3 {[%clk 0:00:07.4]} 31. Qxg3 {[%clk 0:00:13.1]} 31... Nxe7 {[%clk
0:00:06.7]} 32. Qe1 {[%clk 0:00:13.5]} 32... Kd8 {[%clk 0:00:06.6]} 33. Bxb7
{[%clk 0:00:12.5]} 33... c6 {[%clk 0:00:05]} 34. Qa5+ {[%clk 0:00:05.9]} 34...
Qc7 {[%clk 0:00:04.8]} 35. Qxc7+ {[%clk 0:00:06.3]} 35... Kxc7 {[%clk
0:00:05.7]} 36. Bxa6 {[%clk 0:00:04.1]} 36... Kb6 {[%clk 0:00:06.2]} 37. Bc8
{[%clk 0:00:02.3]} 37... Kc7 {[%clk 0:00:05.8]} 38. Bxf5 {[%clk 0:00:02.1]}
38... Rg8+ {[%clk 0:00:06.5]} 39. Bg4 {[%clk 0:00:02.6]} 39... Ng6 {[%clk
0:00:06.7]} 40. Rf3 {[%clk 0:00:02.4]} 40... Nh4 {[%clk 0:00:06.8]} 41. Rf2
{[%clk 0:00:03.1]} 41... Kb6 {[%clk 0:00:07.2]} 42. Kh2 {[%clk 0:00:03.7]} 42...
Kc5 {[%clk 0:00:07.5]} 43. f5 {[%clk 0:00:04.4]} 43... Kd4 {[%clk 0:00:06.6]}
44. f6 {[%clk 0:00:05]} 44... Ke5 {[%clk 0:00:05.7]} 45. f7 {[%clk 0:00:05.2]}
45... Rf8 {[%clk 0:00:06.4]} 46. Bh5 {[%clk 0:00:05.8]} 46... Nf5 {[%clk
0:00:05.8]} 47. Bg4 {[%clk 0:00:05]} 47... Nh6 {[%clk 0:00:05.4]} 48. a4 {[%clk
0:00:05.6]} 48... Kd4 {[%clk 0:00:04.6]} 49. a5 {[%clk 0:00:05.8]} 49... Ke3
{[%clk 0:00:05.4]} 50. Rf3+ {[%clk 0:00:05.7]} 50... Ke2 {[%clk 0:00:04.8]} 51.
Kg3 {[%clk 0:00:06.2]} 51... Kd2 {[%clk 0:00:02]} 52. a6 {[%clk 0:00:06.3]}
52... Nxf7 {[%clk 0:00:02.3]} 53. a7 {[%clk 0:00:05.9]} 53... Kc3 {[%clk
0:00:03]} 54. Rxf7 {[%clk 0:00:06]} 1-0

[Event "Early-Titled-Tuesday-Blitz-January-16-2024"]
[Site "Chess.com"]
[Date "2024.01.16"]
[Round "3"]
[White "Batcu"]
[Black "Kostya0705"]
[Result "0-1"]
[WhiteElo "2254"]
[BlackElo "2561"]
[TimeControl "180+1"]
[EndTime "8:30:01 PST"]
[Termination "Kostya0705 won on time"]

1. d4 {[%clk 0:03:00.9]} 1... Nf6 {[%clk 0:02:03.5]} 2. Bf4 {[%clk 0:02:57.5]}
2... d5 {[%clk 0:02:03.9]} 3. e3 {[%clk 0:02:53.7]} 3... c5 {[%clk 0:02:03]} 4.
c3 {[%clk 0:02:53.4]} 4... Qb6 {[%clk 0:02:00.6]} 5. Qc2 {[%clk 0:02:45.7]} 5...
g6 {[%clk 0:01:58.3]} 6. Nd2 {[%clk 0:02:33.8]} 6... Bf5 {[%clk 0:01:45.1]} 7.
Qc1 {[%clk 0:02:33]} 7... Bg7 {[%clk 0:01:40.7]} 8. Ngf3 {[%clk 0:02:32.8]} 8...
c4 {[%clk 0:01:40.5]} 9. h3 {[%clk 0:02:32.4]} 9... O-O {[%clk 0:01:39.4]} 10.
Be2 {[%clk 0:02:20.2]} 10... Nc6 {[%clk 0:01:39.1]} 11. O-O {[%clk 0:02:19.9]}
11... Qd8 {[%clk 0:01:37.2]} 12. a4 {[%clk 0:02:18.3]} 12... a6 {[%clk
0:01:34.8]} 13. Ne5 {[%clk 0:02:15.3]} 13... Nxe5 {[%clk 0:01:34]} 14. Bxe5
{[%clk 0:02:14.9]} 14... b5 {[%clk 0:01:33.2]} 15. f3 {[%clk 0:02:12.2]} 15...
Qd7 {[%clk 0:01:26.1]} 16. g4 {[%clk 0:02:07.6]} 16... Be6 {[%clk 0:01:25.4]}
17. e4 {[%clk 0:02:05.4]} 17... Rfd8 {[%clk 0:01:12]} 18. Bf4 {[%clk 0:01:54.2]}
18... h5 {[%clk 0:01:02.9]} 19. e5 {[%clk 0:01:42.6]} 19... Nh7 {[%clk
0:01:02.7]} 20. Rf2 {[%clk 0:01:37.2]} 20... hxg4 {[%clk 0:00:47.6]} 21. hxg4
{[%clk 0:01:33.7]} 21... f6 {[%clk 0:00:48.1]} 22. exf6 {[%clk 0:01:26.8]} 22...
exf6 {[%clk 0:00:48.1]} 23. Nf1 {[%clk 0:01:25.7]} 23... Kf7 {[%clk 0:00:45.5]}
24. Bd1 {[%clk 0:01:24.1]} 24... g5 {[%clk 0:00:45.7]} 25. Bh2 {[%clk
0:01:18.8]} 25... Nf8 {[%clk 0:00:46]} 26. Bc2 {[%clk 0:01:06.3]} 26... Ng6
{[%clk 0:00:46.2]} 27. Bxg6+ {[%clk 0:01:01.6]} 27... Kxg6 {[%clk 0:00:46.6]}
28. Qc2+ {[%clk 0:01:02.1]} 28... Kh6 {[%clk 0:00:46.4]} 29. Re1 {[%clk
0:01:01.3]} 29... Bf8 {[%clk 0:00:41.2]} 30. Bc7 {[%clk 0:00:54.9]} 30... Bd6
{[%clk 0:00:29.5]} 31. Bxd8 {[%clk 0:00:51.8]} 31... Rxd8 {[%clk 0:00:30.4]} 32.
Ne3 {[%clk 0:00:43]} 32... Bg3 {[%clk 0:00:23.8]} 33. Ree2 {[%clk 0:00:31.4]}
33... Bxf2+ {[%clk 0:00:23.3]} 34. Rxf2 {[%clk 0:00:31.6]} 34... Kg7 {[%clk
0:00:23.9]} 35. Rh2 {[%clk 0:00:26.4]} 35... Rh8 {[%clk 0:00:22.7]} 36. Rxh8
{[%clk 0:00:25.9]} 36... Kxh8 {[%clk 0:00:22.9]} 37. Qg6 {[%clk 0:00:26]} 37...
Qf7 {[%clk 0:00:23.8]} 38. Qh6+ {[%clk 0:00:25.1]} 38... Kg8 {[%clk 0:00:24.3]}
39. axb5 {[%clk 0:00:22.4]} 39... axb5 {[%clk 0:00:25.2]} 40. Nf1 {[%clk
0:00:20.6]} 40... Qg7 {[%clk 0:00:21.6]} 41. Qh2 {[%clk 0:00:20.7]} 41... f5
{[%clk 0:00:17.1]} 42. Qb8+ {[%clk 0:00:20.1]} 42... Kh7 {[%clk 0:00:17.3]} 43.
Qd6 {[%clk 0:00:19.2]} 43... Qf7 {[%clk 0:00:16.4]} 44. Qe5 {[%clk 0:00:16.3]}
44... Kg6 {[%clk 0:00:16.1]} 45. Ng3 {[%clk 0:00:11.4]} 45... fxg4 {[%clk
0:00:16.4]} 46. fxg4 {[%clk 0:00:10.8]} 46... Bxg4 {[%clk 0:00:16.9]} 47. Qd6+
{[%clk 0:00:11.1]} 47... Qe6 {[%clk 0:00:16.3]} 48. Qc7 {[%clk 0:00:08.3]} 48...
Qe3+ {[%clk 0:00:15.6]} 49. Kg2 {[%clk 0:00:07.4]} 49... Qf3+ {[%clk 0:00:15.8]}
50. Kg1 {[%clk 0:00:05.2]} 50... Qe3+ {[%clk 0:00:14]} 51. Kg2 {[%clk
0:00:04.8]} 51... Bf3+ {[%clk 0:00:14.7]} 52. Kf1 {[%clk 0:00:03.4]} 52... g4
{[%clk 0:00:11.6]} 53. Qd6+ {[%clk 0:00:03]} 53... Kg5 {[%clk 0:00:11.8]} 54.
Qd8+ {[%clk 0:00:01.2]} 54... Kf4 {[%clk 0:00:11.2]} 55. Nh5+ {[%clk 0:00:01.4]}
55... Kf5 {[%clk 0:00:10.8]} 0-1

[Event "Early-Titled-Tuesday-Blitz-January-16-2024"]
[Site "Chess.com"]
[Date "2024.01.16"]
[Round "3"]
[White "SARGISMV"]
[Black "Egor_Koshulyan"]
[Result "0-1"]
[WhiteElo "2479"]
[BlackElo "2684"]
[TimeControl "180+1"]
[EndTime "8:30:02 PST"]
[Termination "Egor_Koshulyan won by checkmate"]

1. c4 {[%clk 0:03:00.9]} 1... Nf6 {[%clk 0:02:58.1]} 2. Nc3 {[%clk 0:03:01.8]}
2... e6 {[%clk 0:02:58.3]} 3. e4 {[%clk 0:03:01.9]} 3... d5 {[%clk 0:02:59]} 4.
e5 {[%clk 0:03:01.8]} 4... Ne4 {[%clk 0:02:59.2]} 5. Nxe4 {[%clk 0:02:59.3]}
5... dxe4 {[%clk 0:03:00.1]} 6. Qg4 {[%clk 0:02:56.7]} 6... Bd7 {[%clk
0:03:00.4]} 7. Qxe4 {[%clk 0:02:54.3]} 7... Bc6 {[%clk 0:03:00.6]} 8. Qc2 {[%clk
0:02:52]} 8... Na6 {[%clk 0:02:45.1]} 9. a3 {[%clk 0:02:50.2]} 9... Qd4 {[%clk
0:02:10]} 10. Ne2 {[%clk 0:02:40.6]} 10... Qxe5 {[%clk 0:02:09.4]} 11. d4 {[%clk
0:02:41.2]} 11... Qf6 {[%clk 0:02:06.9]} 12. b4 {[%clk 0:02:37.6]} 12... Bd7
{[%clk 0:01:49.7]} 13. Bb2 {[%clk 0:02:36.7]} 13... c6 {[%clk 0:01:43.6]} 14.
Ng3 {[%clk 0:02:35.3]} 14... Bd6 {[%clk 0:01:40.4]} 15. Bd3 {[%clk 0:02:30.8]}
15... Qh4 {[%clk 0:01:27.8]} 16. O-O {[%clk 0:02:26.8]} 16... O-O {[%clk
0:01:19.4]} 17. Rae1 {[%clk 0:02:21.1]} 17... Nc7 {[%clk 0:01:10.2]} 18. Re4
{[%clk 0:02:17.9]} 18... Qh6 {[%clk 0:01:10.7]} 19. Rfe1 {[%clk 0:01:55]} 19...
f5 {[%clk 0:01:01.5]} 20. Bc1 {[%clk 0:01:38.1]} 20... Qf6 {[%clk 0:00:33.9]}
21. R4e2 {[%clk 0:01:18.8]} 21... b5 {[%clk 0:00:32.9]} 22. c5 {[%clk
0:01:10.1]} 22... Be7 {[%clk 0:00:32.3]} 23. Re5 {[%clk 0:01:05.4]} 23... Nd5
{[%clk 0:00:30.5]} 24. Bd2 {[%clk 0:00:55.4]} 24... Qg6 {[%clk 0:00:28.8]} 25.
Qc1 {[%clk 0:00:48.7]} 25... Rae8 {[%clk 0:00:25.5]} 26. Nf1 {[%clk 0:00:36]}
26... Bf6 {[%clk 0:00:24.3]} 27. Ne3 {[%clk 0:00:24.4]} 27... Bxe5 {[%clk
0:00:21.2]} 28. dxe5 {[%clk 0:00:25.3]} 28... Nf4 {[%clk 0:00:18.7]} 29. Bc2
{[%clk 0:00:18.1]} 29... Rd8 {[%clk 0:00:18.4]} 30. Bb3 {[%clk 0:00:17]} 30...
Bc8 {[%clk 0:00:17.6]} 31. Kf1 {[%clk 0:00:17.1]} 31... Bd7 {[%clk 0:00:17.5]}
32. Bc3 {[%clk 0:00:16.4]} 32... Bc8 {[%clk 0:00:17.8]} 33. Rd1 {[%clk
0:00:16.3]} 33... Qh5 {[%clk 0:00:12]} 34. h3 {[%clk 0:00:14.3]} 34... Qe2+
{[%clk 0:00:10.9]} 35. Kg1 {[%clk 0:00:14]} 35... Rd3 {[%clk 0:00:08.7]} 36.
Rxd3 {[%clk 0:00:13.9]} 36... Qxd3 {[%clk 0:00:09.6]} 37. Qb2 {[%clk 0:00:10.2]}
37... Ne2+ {[%clk 0:00:09.2]} 38. Kh2 {[%clk 0:00:10.2]} 38... Nxc3 {[%clk
0:00:09.6]} 39. Bc2 {[%clk 0:00:09.2]} 39... Qd4 {[%clk 0:00:10.1]} 40. Qc1
{[%clk 0:00:07.6]} 40... Nd5 {[%clk 0:00:09.5]} 41. Nxd5 {[%clk 0:00:04.4]}
41... cxd5 {[%clk 0:00:09.2]} 42. Qg5 {[%clk 0:00:05.1]} 42... Qxe5+ {[%clk
0:00:09.5]} 43. f4 {[%clk 0:00:05.1]} 43... Qf6 {[%clk 0:00:10.1]} 44. Qg3
{[%clk 0:00:05.3]} 44... Bb7 {[%clk 0:00:08.6]} 45. Bd3 {[%clk 0:00:05.7]} 45...
d4 {[%clk 0:00:09]} 46. Bxb5 {[%clk 0:00:05.9]} 46... Bd5 {[%clk 0:00:07.8]} 47.
c6 {[%clk 0:00:05.3]} 47... Qg6 {[%clk 0:00:08.3]} 48. Qf2 {[%clk 0:00:04.8]}
48... d3 {[%clk 0:00:08.4]} 49. Bxd3 {[%clk 0:00:04.4]} 49... Bxc6 {[%clk
0:00:08.6]} 50. b5 {[%clk 0:00:05.3]} 50... Bd5 {[%clk 0:00:09]} 51. a4 {[%clk
0:00:06.2]} 51... Rc8 {[%clk 0:00:08.8]} 52. a5 {[%clk 0:00:06.5]} 52... Rc3
{[%clk 0:00:08.6]} 53. b6 {[%clk 0:00:06.9]} 53... axb6 {[%clk 0:00:08.2]} 54.
a6 {[%clk 0:00:07]} 54... Rxd3 {[%clk 0:00:08.3]} 55. a7 {[%clk 0:00:07.9]}
55... Ra3 {[%clk 0:00:08.9]} 56. h4 {[%clk 0:00:07.9]} 56... Rxa7 {[%clk
0:00:08.7]} 57. h5 {[%clk 0:00:06.7]} 57... Qg4 {[%clk 0:00:09.2]} 58. Kg1
{[%clk 0:00:07.6]} 58... Ra1+ {[%clk 0:00:09.1]} 59. Kh2 {[%clk 0:00:08.5]}
59... Ra3 {[%clk 0:00:08.9]} 60. Qh4 {[%clk 0:00:09.4]} 60... Qxg2# {[%clk
0:00:08.9]} 0-1